[Event "WYCC 2018 G16"]
[Site "Halkidiki"]
[Date "2018.10.30"]
[Round "11"]
[White "Grigorieva, Yulia"]
[Black "Sanabria Taskila, Jenny Maria"]
[Result "1-0"]
[ECO "A14"]
[WhiteElo "2112"]
[BlackElo "1728"]
[Annotator "NA"]
[PlyCount "47"]
[EventDate "2018.10.20"]
[EventType "swiss"]
[EventCountry "GRE"]
[SourceTitle "playchess.com"]
[Source "ChessBase"]
[SourceQuality "1"]
[TimeControl "40/5400+30:1800+30"]

1. c4 {[%emt 0:00:00]} e6 {[%emt 0:00:00]} 2. Nf3 {[%emt 0:00:00]} Nf6 {[%emt 0:00:11]} 3. g3 {[%emt 0:00:09]} d5 {[%emt 0:00:09]} 4. Bg2 {[%emt 0:00:14]} Be7 {[%emt 0:00:08]} 5. O-O {[%emt 0:00:17]} O-O {[%emt 0:00:09]} 6. d4 {[%emt 0:00:16]} c6 {[%emt 0:00:16]} 7. Qc2 {[%emt 0:00:22]} b6 {[%emt 0:00:20]} 8. Rd1 {[%emt 0:00:50]} Bb7 {[%emt 0:00:20]} 9. b3 {[%emt 0:02:04]} Nbd7 {[%emt 0:01:49]} 10. Nc3 {[%emt 0:00:40]} a5 {[%emt 0:02:42] E08: Closed Catalan: Main Line: 7 Qc2} (10... Rc8 11. e4 c5 12. dxc5 dxc4 13. b4 a5 14. a3 axb4 15. axb4 bxc5 16. b5 Qc7 17. Bf4 e5 18. Bg5 Nb6 19. Nd2 {½-½ (32) Nakamura,H (2787)-Carlsen,M (2855) Bilbao 2016}) 11. e4 {[%emt 0:07:02]} a4 {[%emt 0:05:47]} 12. cxd5 $146 {[%emt 0:16:55]} ({Predecessor:} 12. bxa4 Nxe4 13. Nxe4 dxe4 14. Qxe4 Rxa4 15. Qc2 Qa8 16. c5 Rd8 17. cxb6 Ra6 18. Bg5 Bxg5 19. Nxg5 {1-0 (35) Morozov,N (2438)-Mufic,G (2299) Spilimbergo 2018}) 12... cxd5 {[%emt 0:04:05]} 13. e5 {[%emt 0:01:43]} axb3 {[%emt 0:07:17]} 14. Qxb3 {[%emt 0:01:49]} Ne4 {[%emt 0:03:28]} 15. Nxe4 {[%emt 0:11:40]} dxe4 {[%emt 0:00:32]} 16. Nd2 {[%emt 0:00:19]} Bd5 {[%emt 0:01:33]} 17. Qb1 {[%emt 0:04:14]} Ra4 {[%emt 0:06:15]} 18. Nxe4 {[%emt 0:25:30]} Qa8 {[%emt 0:04:03]} 19. Qb5 {[%emt 0:05:26]} Bc6 {[%emt 0:10:22]} 20. Nf6+ {[%emt 0:04:00]} Bxf6 $18 {[%emt 0:06:30]} 21. Bxc6 {[%emt 0:03:03]} Ra5 {[%emt 0:01:07]} 22. Bxa8 {[%emt 0:00:44]} Rxb5 {[%emt 0:00:06]} 23. Bc6 {[%emt 0:00:16]} Nxe5 {[%emt 0:01:38]} 24. Bxb5 {[%emt 0:01:45]} 1-0

[Event "WYCC 2018 G16"]
[Site "Halkidiki"]
[Date "2018.10.30"]
[Round "11"]
[White "Bulatova, Kamaliya"]
[Black "Miroshnik, Ekaterina"]
[Result "1/2-1/2"]
[ECO "A46"]
[WhiteElo "2108"]
[BlackElo "2023"]
[Annotator "NA"]
[PlyCount "86"]
[EventDate "2018.10.20"]
[EventType "swiss"]
[EventCountry "GRE"]
[SourceTitle "playchess.com"]
[Source "ChessBase"]
[SourceQuality "1"]
[TimeControl "40/5400+30:1800+30"]

1. d4 {[%emt 0:00:00]} Nf6 {[%emt 0:00:00]} 2. Nf3 {[%emt 0:00:00]} e6 {[%emt 0:00:00]} 3. g3 {[%emt 0:00:00]} d5 {[%emt 0:00:00]} 4. Bg2 {[%emt 0:00:00]} Be7 {[%emt 0:00:00]} 5. O-O {[%emt 0:00:00] LiveBook: 1426 Games} b5 {[%emt 0:00:09]} 6. c3 {[%emt 0:00:03] A46: 1 d4 Nf6 2 Nf3 e6: Torre, London and Colle Systems} (6. Qd3 O-O 7. Bg5 c6 8. Nbd2 a5 9. e4 Ba6 10. Rfe1 h6 11. Bxf6 Bxf6 12. c3 b4 13. c4 dxc4 14. Nxc4 {½-½ (52) Vachier Lagrave,M (2789)-Meier,G (2648) Karlsruhe/Baden-Baden 2018}) 6... O-O {[%emt 0:01:20]} 7. a4 {[%emt 0:00:30]} b4 {[%emt 0:02:46]} 8. a5 {[%emt 0:03:04]} bxc3 {[%emt 0:07:20]} 9. bxc3 {[%emt 0:01:41]} Ba6 {[%emt 0:02:18]} 10. Ne5 {[%emt 0:02:04]} Nfd7 {[%emt 0:03:23]} 11. Nd3 {[%emt 0:01:40]} c5 {[%emt 0:01:45]} 12. e4 {[%emt 0:07:26]} Nf6 {[%emt 0:15:58]} 13. exd5 {[%emt 0:03:05]} exd5 $146 {[%emt 0:00:27]} ({Predecessor:} 13... Nxd5 14. dxc5 {½-½ (59) Sriram,J (2393)-Le,T (2485) Vientiane 2018}) 14. dxc5 {[%emt 0:04:27]} Nbd7 {[%emt 0:09:27]} 15. Re1 {[%emt 0:07:21]} Bxd3 {[%emt 0:04:58]} 16. Qxd3 {[%emt 0:00:13]} Nxc5 {[%emt 0:00:04]} 17. Qd1 {[%emt 0:01:28]} Rb8 {[%emt 0:09:26]} 18. Be3 {[%emt 0:03:37]} Qd7 {[%emt 0:05:34]} 19. Ra2 {[%emt 0:04:28]} Nce4 {[%emt 0:03:54]} 20. Bd4 {[%emt 0:03:59]} Rfc8 {[%emt 0:03:20]} 21. Rae2 {[%emt 0:10:12]} Bc5 {[%emt 0:10:24]} 22. Bxc5 {[%emt 0:10:23]} Rxc5 {[%emt 0:00:42]} 23. Bxe4 {[%emt 0:00:43]} dxe4 {[%emt 0:00:04]} 24. Qxd7 {[%emt 0:00:35]} Nxd7 {[%emt 0:00:04]} 25. Rxe4 {[%emt 0:00:06]} Rxa5 {[%emt 0:03:44]} 26. Re8+ {[%emt 0:00:26]} Rxe8 {[%emt 0:00:06]} 27. Rxe8+ {[%emt 0:00:13]} Nf8 {[%emt 0:00:03]} 28. Nd2 {[%emt 0:00:04]} f6 {[%emt 0:05:48]} 29. Nb3 {[%emt 0:03:36]} Ra3 {[%emt 0:03:41]} 30. Rb8 {[%emt 0:01:42]} a5 $11 {[%emt 0:02:19]} 31. c4 {[%emt 0:00:26]} a4 {[%emt 0:00:34]} 32. Nc5 {[%emt 0:00:11]} Kf7 {[%emt 0:00:08]} 33. Ra8 {[%emt 0:00:07]} Ra1+ {[%emt 0:00:15]} 34. Kg2 {[%emt 0:00:07]} a3 {[%emt 0:00:30]} 35. Ra7+ {[%emt 0:00:28]} Kg6 {[%emt 0:00:54]} 36. Nb3 {[%emt 0:00:52]} Ra2 {[%emt 0:04:39]} 37. Nd4 {[%emt 0:06:51]} Rd2 {[%emt 0:00:38]} 38. Nf3 {[%emt 0:00:32]} Rc2 {[%emt 0:00:30]} 39. Nh4+ {[%emt 0:00:32]} Kh6 {[%emt 0:00:04]} 40. Rxa3 {[%emt 0:00:00]} Rxc4 {[%emt 0:00:00]} 41. Re3 {[%emt 0:09:27]} g5 {[%emt 0:03:55]} 42. Re8 {[%emt 0:03:13]} gxh4 {[%emt 0:00:28]} 43. Rxf8 {[%emt 0:00:04]} Kg7 {[%emt 0:00:42]} 1/2-1/2

[Event "WYCC 2018 G16"]
[Site "Halkidiki"]
[Date "2018.10.30"]
[Round "11"]
[White "Salonika, Saina"]
[Black "Serikbay, Assel"]
[Result "0-1"]
[ECO "B42"]
[WhiteElo "2093"]
[BlackElo "2166"]
[Annotator "NA"]
[PlyCount "124"]
[EventDate "2018.10.20"]
[EventType "swiss"]
[EventCountry "GRE"]
[SourceTitle "playchess.com"]
[Source "ChessBase"]
[SourceQuality "1"]
[TimeControl "40/5400+30:1800+30"]

1. e4 {[%emt 0:00:00]} c5 {[%emt 0:00:00]} 2. Nf3 {[%emt 0:00:00]} e6 {[%emt 0:00:00]} 3. d4 {[%emt 0:00:00]} cxd4 {[%emt 0:00:00]} 4. Nxd4 {[%emt 0:00:00]} a6 {[%emt 0:00:00]} 5. Bd3 {[%emt 0:00:00]} Nf6 {[%emt 0:00:00]} 6. O-O {[%emt 0:00:00]} d6 {[%emt 0:00:00]} 7. Qe2 {[%emt 0:00:00] LiveBook: 188 Games} g6 {[%emt 0:00:55]} 8. c4 {[%emt 0:00:10]} Bg7 {[%emt 0:00:09]} 9. Nc3 {[%emt 0:00:06]} O-O {[%emt 0:00:35] B42: Sicilian: Kan Variation: 5 Bd3} 10. Bg5 {[%emt 0:00:03]} (10. Rd1 Nbd7 11. Nf3 Qc7 12. h3 b6 13. Bf4 Nh5 14. Bg5 Bb7 15. Rac1 Rac8 16. Qe3 Rfe8 17. Be2 Bf8 18. Bh6 Ng7 19. b3 {½-½ (19) Tazbir,M (2513)-Hera,I (2619) Germany 2017}) 10... Nbd7 {[%emt 0:01:10]} 11. Qd2 {[%emt 0:01:51]} Qc7 {[%emt 0:01:45]} 12. Be2 {[%emt 0:01:55]} b6 {[%emt 0:01:25]} 13. Rac1 $146 {[%emt 0:00:35]} ({Predecessor:} 13. Rfd1 Bb7 14. f3 Rfe8 15. Rac1 Rac8 16. Nb3 Bf8 17. Qf4 {0-1 (51) Martinez,A (2215)-Serikbay,A (2125) Batumi 2018}) 13... Bb7 {[%emt 0:02:00]} 14. f3 {[%emt 0:00:08]} Rac8 {[%emt 0:03:35]} 15. Rfd1 {[%emt 0:00:08]} Rfd8 {[%emt 0:01:44]} 16. b4 {[%emt 0:01:34]} Qb8 {[%emt 0:03:04]} 17. Nb3 {[%emt 0:03:28]} Ne5 {[%emt 0:09:08]} 18. f4 {[%emt 0:05:02]} Nc6 {[%emt 0:02:13]} (18... Nxc4 $11 {keeps the balance.} 19. Bxc4 Rxc4) 19. a3 {[%emt 0:03:56]} h6 {[%emt 0:10:06]} 20. Bh4 {[%emt 0:01:48]} Ne7 {[%emt 0:00:39]} 21. Bd3 {[%emt 0:16:03]} Rd7 {[%emt 0:09:12]} 22. Qe3 {[%emt 0:07:27]} d5 {[%emt 0:10:31]} 23. cxd5 {[%emt 0:03:40]} Rxc3 {[%emt 0:01:23]} 24. dxe6 {[%emt 0:03:57]} Rxc1 {[%emt 0:02:41]} 25. exf7+ {[%emt 0:00:13]} Kxf7 {[%emt 0:01:17]} 26. Rxc1 {[%emt 0:01:28]} Rxd3 {[%emt 0:15:10]} 27. Qxd3 {[%emt 0:00:33]} Bxe4 {[%emt 0:00:09]} 28. Qd2 {[%emt 0:02:05]} Bd5 {[%emt 0:06:13]} 29. Re1 {[%emt 0:08:17]} Qb7 {[%emt 0:02:20]} 30. Nc1 {[%emt 0:04:20]} Nf5 {[%emt 0:01:53]} 31. Bxf6 {[%emt 0:05:17]} Bxf6 {[%emt 0:00:03]} 32. h3 {[%emt 0:08:04]} Nh4 {[%emt 0:01:39]} 33. Rd1 {[%emt 0:04:26]} Bxg2 {[%emt 0:04:45]} 34. Qd7+ {[%emt 0:01:29]} Qxd7 {[%emt 0:00:05]} 35. Rxd7+ {[%emt 0:00:05]} Ke6 {[%emt 0:00:03]} 36. Ra7 {[%emt 0:00:06]} Bd4+ {[%emt 0:02:10]} 37. Kh2 {[%emt 0:00:07]} Bd5 {[%emt 0:01:10]} 38. Ne2 {[%emt 0:04:14]} Bf2 {[%emt 0:01:09]} 39. Rxa6 {[%emt 0:00:46]} Nf5 {[%emt 0:04:08]} 40. Nc3 {[%emt 0:00:00]} Bf3 {[%emt 0:00:00]} 41. a4 {[%emt 0:08:46]} Ne3 {[%emt 0:03:46]} 42. h4 {[%emt 0:00:16]} Kf5 {[%emt 0:02:03]} 43. Nb1 {[%emt 0:08:46]} Nf1+ {[%emt 0:02:37]} 44. Kh3 {[%emt 0:00:05]} Kxf4 {[%emt 0:07:57]} 45. Ra7 {[%emt 0:00:07]} Ne3 {[%emt 0:01:02]} 46. Rf7+ {[%emt 0:05:40]} Nf5 {[%emt 0:00:07]} 47. Nd2 {[%emt 0:01:05]} Bd5 {[%emt 0:01:54]} 48. Rd7 {[%emt 0:03:23]} Be6 {[%emt 0:00:33]} 49. Rd3 {[%emt 0:00:24]} Nxh4+ {[%emt 0:00:35]} 50. Kh2 {[%emt 0:00:05]} g5 {[%emt 0:00:40]} 51. a5 {[%emt 0:00:56]} bxa5 {[%emt 0:00:06]} 52. bxa5 {[%emt 0:00:03]} g4 {[%emt 0:00:10]} 53. Nf1 {[%emt 0:00:26]} Bc4 {[%emt 0:01:27]} 54. Rd1 {[%emt 0:00:06]} h5 {[%emt 0:05:10]} 55. Ra1 {[%emt 0:00:41]} Kg5 {[%emt 0:06:05]} (55... Nf3+ $142 56. Kg2 Bd4 57. Ra4 Bd5 58. Ng3 Nd2+ 59. Kh2 Kg5 60. a6 h4 61. Rxd4 Nf3+ 62. Kh1 Nxd4+ 63. Kh2 hxg3+ 64. Kxg3 Nf5+ 65. Kf2 g3+ 66. Kf1 Nd4 67. Ke1 Kf4 68. a7 g2 69. Kf2 Ba8 70. Kg1 Kf3 71. Kh2 Ne2 72. Kh3 g1=Q 73. Kh4 Qg4#) 56. Ng3 {[%emt 0:03:33]} Bd4 {[%emt 0:02:54]} 57. Ra4 $19 {[%emt 0:02:04]} Nf3+ {[%emt 0:00:03]} 58. Kg2 {[%emt 0:00:15]} Bb5 {[%emt 0:02:56]} 59. Rb4 {[%emt 0:00:53]} Bc6 {[%emt 0:00:06]} 60. a6 {[%emt 0:01:52]} h4 {[%emt 0:00:34]} 61. Ne2 {[%emt 0:01:03]} Nd2+ {[%emt 0:00:11]} 62. Kh2 {[%emt 0:00:03]} Nf1# {[%emt 0:00:07]} 0-1

[Event "WYCC 2018 G16"]
[Site "Halkidiki"]
[Date "2018.10.30"]
[Round "11"]
[White "Kucharska, Honorata"]
[Black "Maltsevskaya, Aleksandra"]
[Result "1-0"]
[ECO "B24"]
[WhiteElo "2073"]
[BlackElo "2290"]
[Annotator "ChessBase"]
[PlyCount "101"]
[EventDate "2018.10.20"]
[EventType "swiss"]
[EventCountry "GRE"]
[SourceTitle "playchess.com"]
[Source "ChessBase"]
[SourceQuality "1"]
[TimeControl "40/5400+30:1800+30"]

1. e4 {[%emt 0:00:00]} c5 {[%emt 0:00:00]} 2. Nc3 {[%emt 0:00:00]} Nc6 {[%emt 0:00:00]} 3. Bb5 {[%emt 0:00:00]} Nd4 {[%emt 0:00:00]} 4. Bc4 {[%emt 0:00:01]} e6 {[%emt 0:00:00]} 5. Nf3 {[%emt 0:00:30]} a6 {[%emt 0:00:00]} 6. d3 {[%emt 0:00:30]} b5 {[%emt 0:00:00]} 7. Bb3 {[%emt 0:00:07]} Nxb3 {[%emt 0:00:05]} 8. axb3 {[%emt 0:00:06]} Bb7 {[%emt 0:00:03]} 9. O-O {[%emt 0:00:43]} Qc7 {[%emt 0:01:30]} 10. e5 {[%emt 0:06:35]} Ne7 {[%emt 0:04:14]} 11. Re1 {[%emt 0:03:06]} Ng6 {[%emt 0:10:08]} 12. Qe2 {[%emt 0:09:17]} Be7 {[%emt 0:03:35]} 13. Ng5 {[%emt 0:10:29]} f6 {[%emt 0:25:55]} 14. exf6 {[%emt 0:04:27]} gxf6 {[%emt 0:01:27]} 15. Nh3 {[%emt 0:06:30]} Rg8 {[%emt 0:04:45]} 16. Ne4 {[%emt 0:02:29]} O-O-O {[%emt 0:05:14]} 17. f3 {[%emt 0:03:32]} f5 {[%emt 0:07:14]} 18. Ng3 {[%emt 0:02:28]} Bh4 {[%emt 0:13:16]} 19. Qe3 {[%emt 0:09:11]} Rdf8 {[%emt 0:01:48]} 20. f4 {[%emt 0:03:21]} Bf6 {[%emt 0:03:39]} 21. c3 {[%emt 0:01:34]} Rf7 {[%emt 0:04:57]} 22. Bd2 {[%emt 0:04:11]} Qc6 {[%emt 0:04:58]} 23. Re2 {[%emt 0:01:20]} Ne7 {[%emt 0:00:16]} 24. Rc1 {[%emt 0:02:47]} h5 {[%emt 0:00:12]} 25. Qf2 {[%emt 0:01:52]} Rg4 {[%emt 0:02:50]} 26. b4 {[%emt 0:01:22]} Rfg7 {[%emt 0:01:53]} 27. Ng5 {[%emt 0:01:04]} h4 {[%emt 0:02:12]} 28. Nh5 {[%emt 0:00:21]} h3 {[%emt 0:00:29]} 29. Qxc5 {[%emt 0:00:12]} Qxc5+ {[%emt 0:03:06]} 30. bxc5 {[%emt 0:00:07]} Rg6 {[%emt 0:00:42]} 31. Nxf6 {[%emt 0:00:14]} Rxf6 {[%emt 0:00:06]} 32. Nxh3 {[%emt 0:00:23]} Rh6 {[%emt 0:00:26]} 33. Ng5 {[%emt 0:00:28]} Bc6 {[%emt 0:00:58]} 34. Nf7 {[%emt 0:01:12]} Rh3 {[%emt 0:00:31]} 35. Ne5 {[%emt 0:00:25]} Rg8 {[%emt 0:00:05]} 36. Nxc6 {[%emt 0:00:29]} Nxc6 {[%emt 0:00:04]} 37. g3 {[%emt 0:00:07]} Ne7 {[%emt 0:00:13]} 38. Be3 {[%emt 0:00:43]} Nd5 {[%emt 0:00:19]} 39. c4 {[%emt 0:01:17]} Nf6 {[%emt 0:00:55]} 40. cxb5 {[%emt 0:00:00]} axb5 {[%emt 0:00:00]} 41. c6 {[%emt 0:03:37]} Ng4 {[%emt 0:02:46]} 42. Bd4 {[%emt 0:01:08]} dxc6 {[%emt 0:06:51]} 43. Rxc6+ {[%emt 0:01:02]} Kd7 {[%emt 0:00:04]} 44. Ra6 {[%emt 0:03:50]} Rc8 {[%emt 0:00:31]} 45. Ra7+ {[%emt 0:00:40]} Kd6 {[%emt 0:00:40]} 46. Bc3 {[%emt 0:00:25]} Kc5 {[%emt 0:09:13]} 47. Rxe6 {[%emt 0:05:20]} Rxh2 {[%emt 0:01:57]} 48. Rg6 {[%emt 0:00:27]} Rd8 {[%emt 0:04:30]} 49. Rc7+ {[%emt 0:01:27]} Kd5 {[%emt 0:00:06]} 50. Rb7 {[%emt 0:00:09]} Rd6 {[%emt 0:04:25]} 51. Rxg4 {[%emt 0:00:51]} 1-0

[Event "WYCC 2018 G16"]
[Site "Halkidiki"]
[Date "2018.10.30"]
[Round "11"]
[White "Rudzinska, Michalina"]
[Black "Solozhenkina, Elizaveta"]
[Result "1/2-1/2"]
[ECO "B92"]
[WhiteElo "2073"]
[BlackElo "2276"]
[Annotator "NA"]
[PlyCount "49"]
[EventDate "2018.10.20"]
[EventType "swiss"]
[EventCountry "GRE"]
[SourceTitle "playchess.com"]
[Source "ChessBase"]
[SourceQuality "1"]
[TimeControl "40/5400+30:1800+30"]

1. e4 {[%emt 0:00:00]} c5 {[%emt 0:00:00]} 2. Nf3 {[%emt 0:00:00]} d6 {[%emt 0:00:00]} 3. d4 {[%emt 0:00:00]} cxd4 {[%emt 0:00:00]} 4. Nxd4 {[%emt 0:00:00]} Nf6 {[%emt 0:00:01]} 5. Nc3 {[%emt 0:00:00] LiveBook: 99691 Games} a6 {[%emt 0:00:09]} 6. Be2 {[%emt 0:00:08]} e5 {[%emt 0:00:30]} 7. Nb3 {[%emt 0:00:08]} Be7 {[%emt 0:00:31]} 8. O-O {[%emt 0:00:13]} O-O {[%emt 0:01:04]} 9. Re1 {[%emt 0:00:11]} Be6 {[%emt 0:04:21]} 10. Bf3 {[%emt 0:00:08]} Nbd7 {[%emt 0:01:44]} 11. a4 {[%emt 0:00:48]} Rc8 {[%emt 0:01:25]} 12. Nd2 {[%emt 0:01:02]} Qa5 {[%emt 0:07:03]} 13. Nf1 {[%emt 0:07:05]} b5 {[%emt 0:02:20]} 14. Ne3 {[%emt 0:08:46]} b4 {[%emt 0:05:29]} 15. Ncd5 {[%emt 0:01:23]} Bxd5 {[%emt 0:02:01]} 16. exd5 {[%emt 0:00:15]} g6 {[%emt 0:00:55]} 17. b3 {[%emt 0:12:58]} Nb6 {[%emt 0:05:54]} 18. Qd2 {[%emt 0:08:01]} e4 {[%emt 0:16:53]} 19. Bb2 {[%emt 0:02:30]} exf3 {[%emt 0:20:51] [#]} 20. Nf5 $11 {[%emt 0:00:27]} Bd8 {[%emt 0:01:18]} 21. Qh6 {[%emt 0:25:33]} gxf5 {[%emt 0:14:35]} 22. Qg5+ {[%emt 0:03:10]} Kh8 {[%emt 0:00:04]} 23. Bxf6+ {[%emt 0:00:24]} Bxf6 {[%emt 0:00:05]} 24. Qxf6+ {[%emt 0:00:04]} Kg8 {[%emt 0:00:03]} 25. Qg5+ {[%emt 0:00:40]} 1/2-1/2

[Event "WYCC 2018 G16"]
[Site "Halkidiki"]
[Date "2018.10.30"]
[Round "11"]
[White "Srdanovic, Jovana"]
[Black "Sanskriti Goyal"]
[Result "0-1"]
[ECO "E14"]
[WhiteElo "2072"]
[BlackElo "1971"]
[Annotator "NA"]
[PlyCount "68"]
[EventDate "2018.10.20"]
[EventType "swiss"]
[EventCountry "GRE"]
[SourceTitle "playchess.com"]
[Source "ChessBase"]
[SourceQuality "1"]
[TimeControl "40/5400+30:1800+30"]

1. d4 {[%emt 0:00:00]} e6 {[%emt 0:00:00]} 2. c4 {[%emt 0:00:11]} Nf6 {[%emt 0:00:09]} 3. Nf3 {[%emt 0:00:41]} b6 {[%emt 0:00:14]} 4. e3 {[%emt 0:00:20]} Bb7 {[%emt 0:06:01]} 5. Nc3 {[%emt 0:00:10]} d5 {[%emt 0:01:01]} 6. cxd5 {[%emt 0:01:01]} Nxd5 {[%emt 0:00:17]} 7. Bd3 {[%emt 0:04:55]} c5 {[%emt 0:13:20]} 8. O-O {[%emt 0:10:07]} Nc6 {[%emt 0:06:31]} 9. a3 {[%emt 0:02:09]} cxd4 {[%emt 0:05:54]} 10. exd4 {[%emt 0:00:54]} Be7 {[%emt 0:00:58]} 11. Re1 $11 {[%emt 0:10:51] LiveBook: 3 Games} O-O {[%emt 0:02:05]} 12. Qc2 {[%emt 0:07:01]} g6 {[%emt 0:10:08]} 13. Bh6 {[%emt 0:10:30]} Re8 {[%emt 0:00:08]} 14. Ne4 {[%emt 0:19:03]} Rc8 {[%emt 0:12:55]} 15. Qe2 {[%emt 0:01:23]} Nf6 {[%emt 0:01:28]} 16. Rad1 {[%emt 0:02:33]} Nxd4 {[%emt 0:09:01]} 17. Nxd4 {[%emt 0:07:48]} Qxd4 {[%emt 0:00:11]} 18. Be3 {[%emt 0:03:57]} Qe5 {[%emt 0:09:06]} 19. f4 {[%emt 0:04:39]} Qb8 {[%emt 0:00:58]} 20. Nxf6+ {[%emt 0:05:26]} Bxf6 {[%emt 0:00:03]} 21. Rd2 {[%emt 0:00:28]} Bg7 {[%emt 0:03:32]} 22. h4 {[%emt 0:02:37]} Red8 {[%emt 0:00:36]} 23. Qf2 {[%emt 0:00:39]} Rd5 {[%emt 0:01:14]} 24. Bb1 {[%emt 0:00:34]} Rxd2 {[%emt 0:01:26]} 25. Qxd2 {[%emt 0:00:06]} Rd8 {[%emt 0:00:30]} 26. Qf2 {[%emt 0:00:53]} Qd6 {[%emt 0:01:33]} 27. h5 {[%emt 0:02:48]} Qd5 {[%emt 0:01:12]} 28. hxg6 {[%emt 0:00:20]} hxg6 {[%emt 0:00:02]} 29. Rc1 {[%emt 0:01:08]} Bd4 {[%emt 0:02:50]} 30. Re1 {[%emt 0:01:09]} Bxe3 {[%emt 0:00:39]} 31. Rxe3 {[%emt 0:00:03]} Qd1+ {[%emt 0:00:42]} 32. Re1 {[%emt 0:00:03]} Qd2 {[%emt 0:00:48]} 33. Qg3 {[%emt 0:01:18]} Qxb2 {[%emt 0:01:00]} 34. Be4 {[%emt 0:00:33]} Qd4+ {[%emt 0:00:28]} 0-1

[Event "WYCC 2018 G16"]
[Site "Halkidiki"]
[Date "2018.10.30"]
[Round "11"]
[White "Urh, Zala"]
[Black "Gomez Barrera, Javiera Belen"]
[Result "1/2-1/2"]
[ECO "E73"]
[WhiteElo "2066"]
[BlackElo "2136"]
[Annotator "NA"]
[PlyCount "77"]
[EventDate "2018.10.20"]
[EventType "swiss"]
[EventCountry "GRE"]
[SourceTitle "playchess.com"]
[Source "ChessBase"]
[SourceQuality "1"]
[TimeControl "40/5400+30:1800+30"]

1. d4 {[%emt 0:00:00]} Nf6 {[%emt 0:00:00]} 2. c4 {[%emt 0:00:00]} g6 {[%emt 0:00:00]} 3. Nc3 {[%emt 0:00:00]} Bg7 {[%emt 0:00:00]} 4. e4 {[%emt 0:00:00]} d6 {[%emt 0:00:00]} 5. Be2 {[%emt 0:00:00] LiveBook: 11467 Games} O-O {[%emt 0:00:24]} 6. Be3 {[%emt 0:00:07]} Na6 {[%emt 0:03:04]} 7. Nf3 {[%emt 0:03:37]} c5 {[%emt 0:13:52] E91: Königsindisch (Klassisches System)} (7... e5 8. d5 Ng4 9. Bg5 f6 10. Bh4 h5 11. Nd2 Nh6 12. f3 Nf7 13. O-O Bh6 14. Kh1 c5 15. Bd3 Kg7 16. Qe2 Qe7 17. a3 Bd7 18. Rab1 {½-½ (18) Sakaev,K (2584)-Kokarev,D (2608) St Petersburg 2018}) 8. d5 {[%emt 0:01:37]} e6 {[%emt 0:00:23]} 9. O-O {[%emt 0:01:59]} exd5 {[%emt 0:01:28]} 10. exd5 $146 {[%emt 0:13:24]} ({Vorgänger:} 10. cxd5 Nc7 11. a4 Re8 12. Nd2 b6 13. h3 a6 14. Qc2 Rb8 15. Rab1 {½-½ (38) Khademalsharieh,S (2412)-Zhang,X (2376) Al Ain 2015}) 10... Bf5 {[%emt 0:01:08]} 11. Bd3 {[%emt 0:03:48]} Bxd3 {[%emt 0:04:04]} 12. Qxd3 {[%emt 0:00:02]} Re8 {[%emt 0:00:23]} 13. Rae1 {[%emt 0:03:15]} Nb4 {[%emt 0:11:04]} 14. Qb1 {[%emt 0:00:47]} Qd7 {[%emt 0:14:04]} 15. a3 {[%emt 0:06:09]} Na6 {[%emt 0:00:07]} 16. h3 {[%emt 0:00:36]} Rab8 {[%emt 0:07:10]} 17. Bf4 {[%emt 0:11:34]} Rxe1 {[%emt 0:06:06]} 18. Rxe1 {[%emt 0:00:06]} Nc7 {[%emt 0:00:13]} 19. Qd3 {[%emt 0:06:39]} a6 {[%emt 0:05:05]} 20. b4 {[%emt 0:04:33]} b6 {[%emt 0:05:51]} 21. Ng5 {[%emt 0:05:36]} Re8 $14 {[%emt 0:12:05]} 22. Rb1 {[%emt 0:14:11]} cxb4 {[%emt 0:02:58]} 23. axb4 {[%emt 0:01:00]} b5 {[%emt 0:03:38]} 24. cxb5 {[%emt 0:01:59]} axb5 {[%emt 0:00:20]} 25. Rd1 {[%emt 0:02:54]} Nh5 {[%emt 0:06:48]} 26. Bh2 {[%emt 0:01:54]} Be5 {[%emt 0:00:59]} 27. Nge4 {[%emt 0:03:12]} f5 {[%emt 0:01:39]} 28. Ng5 {[%emt 0:00:50]} f4 {[%emt 0:00:33]} 29. Nf3 {[%emt 0:02:50]} Qf5 {[%emt 0:00:31]} 30. Ne4 {[%emt 0:06:36]} h6 {[%emt 0:00:29]} 31. Nh4 {[%emt 0:00:44]} Qf7 {[%emt 0:00:18]} 32. g4 {[%emt 0:03:10]} fxg3 {[%emt 0:00:40]} 33. fxg3 {[%emt 0:00:01]} Rf8 {[%emt 0:00:31]} 34. Kg2 {[%emt 0:01:24]} g5 {[%emt 0:00:31]} 35. Nf3 {[%emt 0:00:00]} Qf5 {[%emt 0:00:30]} 36. Nfd2 {[%emt 0:01:25]} Qf7 {[%emt 0:00:30]} 37. Nf3 {[%emt 0:00:35]} Qf5 {[%emt 0:00:01]} 38. Nfd2 {[%emt 0:00:01]} Qf7 {[%emt 0:00:23]} 39. Nf3 {[%emt 0:00:08]} 1/2-1/2

[Event "WYCC 2018 G16"]
[Site "Halkidiki"]
[Date "2018.10.30"]
[Round "11"]
[White "Aubert, Estee"]
[Black "Ros Alonso, Joana"]
[Result "0-1"]
[ECO "C00"]
[WhiteElo "2064"]
[BlackElo "1952"]
[Annotator "NA"]
[PlyCount "90"]
[EventDate "2018.10.20"]
[EventType "swiss"]
[EventCountry "GRE"]
[SourceTitle "playchess.com"]
[Source "ChessBase"]
[SourceQuality "1"]
[TimeControl "40/5400+30:1800+30"]

1. e4 {[%emt 0:00:00]} e6 {[%emt 0:00:00]} 2. d3 {[%emt 0:00:00]} d5 {[%emt 0:00:00]} 3. Nd2 {[%emt 0:00:00]} Nf6 {[%emt 0:00:32]} 4. Ngf3 {[%emt 0:00:00]} dxe4 {[%emt 0:01:36]} 5. dxe4 {[%emt 0:00:00]} Bc5 {[%emt 0:01:24]} 6. Bc4 {[%emt 0:04:27]} Nc6 {[%emt 0:01:06]} 7. c3 {[%emt 0:01:17]} a5 {[%emt 0:01:43]} 8. O-O {[%emt 0:01:52]} e5 {[%emt 0:02:09]} 9. Bb5 {[%emt 0:06:49]} Qe7 {[%emt 0:11:39]} 10. Bxc6+ {[%emt 0:25:03]} bxc6 {[%emt 0:00:55]} 11. Nc4 {[%emt 0:04:44]} O-O {[%emt 0:11:38]} 12. Qa4 {[%emt 0:09:44]} Ba6 {[%emt 0:08:02]} 13. Nfxe5 {[%emt 0:04:06]} Nxe4 {[%emt 0:00:47]} 14. Qxc6 {[%emt 0:02:16]} Nxf2 {[%emt 0:08:48]} 15. Rxf2 {[%emt 0:03:18]} Bxc4 {[%emt 0:01:17]} 16. Bf4 {[%emt 0:09:48]} Bxf2+ {[%emt 0:02:55]} 17. Kxf2 {[%emt 0:00:18]} Be6 {[%emt 0:05:17]} 18. Kg1 {[%emt 0:03:28]} Qd6 {[%emt 0:08:18]} 19. Qf3 {[%emt 0:06:21]} Qb6+ {[%emt 0:01:35]} 20. Qf2 {[%emt 0:01:39]} Qxf2+ {[%emt 0:00:41]} 21. Kxf2 {[%emt 0:00:03]} Rab8 {[%emt 0:01:38]} 22. b3 {[%emt 0:00:42]} a4 {[%emt 0:01:05]} 23. b4 {[%emt 0:01:13]} g5 {[%emt 0:03:37]} 24. Be3 {[%emt 0:01:06]} f6 {[%emt 0:07:58]} 25. Nd3 {[%emt 0:00:38]} a3 {[%emt 0:04:07]} 26. Nc5 {[%emt 0:00:41]} Bf5 {[%emt 0:00:12]} 27. Nb3 {[%emt 0:04:01]} Rfe8 {[%emt 0:01:43]} 28. Bc5 {[%emt 0:02:07]} Re4 {[%emt 0:01:16]} 29. Nd4 {[%emt 0:01:51]} Bd7 {[%emt 0:00:42]} 30. Rd1 {[%emt 0:01:32]} Rbe8 {[%emt 0:01:16]} 31. g3 {[%emt 0:00:57]} Bg4 {[%emt 0:02:44]} 32. Rd2 {[%emt 0:00:19]} Re1 {[%emt 0:01:41]} 33. b5 {[%emt 0:01:48]} Bh3 {[%emt 0:01:05]} 34. Ne6 {[%emt 0:03:54]} R8xe6 {[%emt 0:00:56]} 35. Kf3 {[%emt 0:00:19]} R6e5 {[%emt 0:02:19]} 36. g4 {[%emt 0:01:00]} Rxc5 {[%emt 0:00:26]} 37. Rd3 {[%emt 0:00:23]} Rc1 {[%emt 0:00:27]} 38. c4 {[%emt 0:00:15]} R5xc4 {[%emt 0:00:12]} 39. b6 {[%emt 0:00:45]} cxb6 {[%emt 0:00:34]} 40. Rd8+ {[%emt 0:00:00]} Kf7 {[%emt 0:00:00]} 41. Kf2 {[%emt 0:01:05]} R4c3 {[%emt 0:01:13]} 42. Rb8 {[%emt 0:01:07]} R1c2+ {[%emt 0:00:27]} 43. Ke1 {[%emt 0:00:16]} Rf3 {[%emt 0:00:32]} 44. Rb7+ {[%emt 0:00:17]} Kg6 {[%emt 0:00:13]} 45. Kd1 {[%emt 0:00:19]} Rxh2 {[%emt 0:00:56]} 0-1